fUSD/lending_fUSD_20250123
["ID","MTS","AMOUNT","RATE_DAILY","PERIOD"]
[350149345,1737654640750,-500.0,0.00016438,2]
[350149346,1737654640759,-500.0,0.00016438,2]
[350149347,1737654640769,-500.0,0.00016438,2]
[350149348,1737654640779,-500.0,0.00016438,2]
[350149349,1737654640789,-500.0,0.00016438,2]
[350149350,1737654640798,-500.0,0.00016438,2]
[350149351,1737654640808,-500.0,0.00016438,2]
[350149352,1737654640818,-500.0,0.00016438,2]
[350149353,1737654640828,-500.0,0.00016438,2]
[350149354,1737654640837,-500.0,0.00016438,2]
[350149355,1737654640847,-500.0,0.00016438,2]
[350149356,1737654640857,-150.24607783,0.00016438,2]
[350149357,1737654640867,-500.0,0.00016438,2]
[350149358,1737654640876,-500.0,0.00016438,2]
[350149359,1737654640886,-500.0,0.00016438,2]
[350149360,1737654640897,-500.0,0.00016438,2]
[350149361,1737654640911,-511.79261835,0.00016438,2]
[350149362,1737654640921,-500.0,0.00016438,2]
[350149363,1737654640931,-500.0,0.00016438,2]
[350149364,1737654640941,-175.855406,0.00016438,2]
[350149365,1737654640952,-500.0,0.00016438,2]
[350149366,1737654640966,-500.0,0.00016438,2]
[350149367,1737654640978,-500.0,0.00016438,2]
[350149368,1737654640988,-500.0,0.00016438,2]
[350149369,1737654640997,-500.0,0.00016438,2]
[350149370,1737654641007,-516.69188497,0.00016438,2]
[350149371,1737654641016,-500.0,0.00016438,2]
[350149372,1737654641026,-500.0,0.00016438,2]
[350149373,1737654641035,-500.0,0.00016438,2]
[350149374,1737654641044,-500.0,0.00016438,2]
[350149375,1737654641055,-500.0,0.00016438,2]
[350149376,1737654641064,-500.0,0.00016438,2]
[350149377,1737654641075,-500.0,0.00016438,2]
[350149378,1737654641084,-215.20233117,0.00016438,2]
[350149379,1737654641095,-500.0,0.00016438,2]
[350149380,1737654641104,-500.0,0.00016438,2]
[350149381,1737654641113,-500.0,0.00016438,2]
[350149382,1737654641123,-500.0,0.00016438,2]
[350149383,1737654641132,-500.0,0.00016438,2]
[350149384,1737654641141,-500.0,0.00016438,2]
[350149385,1737654641150,-500.0,0.00016438,2]
[350149386,1737654641159,-619.26,0.00016438,2]
[350149387,1737654641169,-500.0,0.00016438,2]
[350149388,1737654641178,-500.0,0.00016438,2]
[350149389,1737654641187,-500.0,0.00016438,2]
[350149390,1737654641196,-500.0,0.00016438,2]
[350149391,1737654641205,-500.0,0.00016438,2]
[350149392,1737654641220,-500.0,0.00016438,2]
[350149393,1737654641229,-500.0,0.00016438,2]
[350149394,1737654641238,-500.0,0.00016438,2]
[350149395,1737654641248,-332.33409614,0.00016438,2]
[350149396,1737654641257,-5000.0,0.00016438,2]
[350149397,1737654641266,-500.0,0.00016438,2]
[350149398,1737654641275,-500.0,0.00016438,2]
[350149399,1737654641284,-500.0,0.00016438,2]
[350149400,1737654641294,-500.0,0.00016438,2]
[350149401,1737654641303,-500.0,0.00016438,2]
[350149402,1737654641312,-500.0,0.00016438,2]
[350149403,1737654641321,-500.0,0.00016438,2]
[350149404,1737654641330,-500.0,0.00016438,2]
[350149405,1737654641340,-500.44343834,0.00016438,2]
[350149406,1737654641349,-500.0,0.00016438,2]
[350149407,1737654641358,-500.0,0.00016438,2]
[350149408,1737654641367,-513.63101253,0.00016438,2]
[350149409,1737654641376,-555.85,0.00016438,2]
[350149410,1737654641385,-507.43557906,0.00016438,2]
[350149411,1737654641394,-500.0,0.00016438,2]
[350149412,1737654641403,-500.0,0.00016438,2]
[350149413,1737654641412,-500.0,0.00016438,2]
[350149414,1737654641422,-500.0,0.00016438,2]
[350149415,1737654641431,-270.26558185,0.00016438,2]
[350149416,1737654641441,-500.0,0.00016438,2]
[350149417,1737654641450,-500.0,0.00016438,2]
[350149418,1737654641464,-501.08896531,0.00016438,2]
[350149419,1737654641473,-500.0,0.00016438,2]
[350149420,1737654641482,-501.2082641,0.00016438,2]
[350149421,1737654641491,-500.0,0.00016438,2]
[350149422,1737654641500,-500.0,0.00016438,2]
[350149423,1737654641509,-500.0,0.00016438,2]
[350149424,1737654641520,-502.55934322,0.00016438,2]
[350149425,1737654641529,-500.0,0.00016438,2]
[350149426,1737654641538,-155.19393517,0.00016438,2]
[350149427,1737654641547,-234.88818518,0.00016438,2]
[350149428,1737654641928,-265.11181482,0.00016438,2]
[350149429,1737654641939,-500.52801978,0.00016438,2]
[350149430,1737654641950,-500.0,0.00016438,2]
[350149431,1737654641962,-500.0,0.00016438,2]
[350149432,1737654641972,-500.0,0.00016438,2]
[350149433,1737654641983,-500.0,0.00016438,2]
[350149434,1737654641994,-500.0,0.00016438,2]
[350149435,1737654642003,-500.0,0.00016438,2]
[350149436,1737654642012,-501.92085883,0.00016438,2]
[350149437,1737654642022,-500.0,0.00016438,2]
[350149438,1737654642032,-500.0,0.00016438,2]
[350149439,1737654642042,-500.0,0.00016438,2]
[350149440,1737654642051,-471.98757497,0.00016438,2]
[350149441,1737654642060,-502.30793028,0.00016438,2]
[350149442,1737654642070,-500.0,0.00016438,2]
[350149443,1737654642079,-500.0,0.00016438,2]
[350149444,1737654642087,-512.21147584,0.00016438,2]
[350149445,1737654642097,-500.0,0.00016438,2]
[350149446,1737654642106,-500.0,0.00016438,2]
[350149447,1737654642115,-500.0,0.00016438,2]
[350149448,1737654642124,-500.0,0.00016438,2]
[350149449,1737654642134,-500.0,0.00016438,2]
[350149450,1737654642143,-500.0,0.00016438,2]
[350149451,1737654642153,-500.0,0.00016438,2]
[350149452,1737654642162,-500.0,0.00016438,2]
[350149453,1737654642171,-531.49103085,0.00016438,2]
[350149454,1737654642180,-500.0,0.00016438,2]
[350149455,1737654642189,-500.0,0.00016438,2]
[350149456,1737654642198,-500.0,0.00016438,2]
[350149457,1737654642207,-500.0,0.00016438,2]
[350149458,1737654642219,-500.0,0.00016438,2]
[350149459,1737654642228,-354.42886197,0.00016438,2]
[350149460,1737654642240,-147.04693669,0.00016438,2]
[350149461,1737654642250,-500.0,0.00016438,2]
[350149462,1737654642260,-500.0,0.00016438,2]
[350149463,1737654642270,-500.0,0.00016438,2]
[350149464,1737654642279,-500.0,0.00016438,2]
[350149465,1737654642288,-369.09606204,0.00016438,2]
[350149466,1737654642298,-500.0,0.00016438,2]
[350149467,1737654642308,-500.0,0.00016438,2]
[350149468,1737654642318,-500.0,0.00016438,2]
[350149469,1737654642329,-500.0,0.00016438,2]
[350149470,1737654642339,-500.0,0.00016438,2]
[350149471,1737654642350,-500.0,0.00016438,2]
[350149472,1737654642361,-500.0,0.00016438,2]
[350149473,1737654642370,-500.0,0.00016438,2]
[350149474,1737654642381,-500.0,0.00016438,2]
[350149475,1737654642390,-500.0,0.00016438,2]
[350149476,1737654642399,-569.27,0.00016438,2]
[350149477,1737654642408,-500.0,0.00016438,2]
[350149478,1737654642417,-562.52,0.00016438,2]
[350149479,1737654642427,-500.0,0.00016438,2]
[350149480,1737654642436,-525.35834672,0.00016438,2]
[350149481,1737654642446,-500.0,0.00016438,2]
[350149482,1737654642457,-531.68,0.00016438,2]
[350149483,1737654642468,-500.0,0.00016438,2]
[350149484,1737654642477,-1151.8,0.00016438,2]
[350149485,1737654642486,-500.0,0.00016438,2]
[350149486,1737654642496,-500.0,0.00016438,2]
[350149487,1737654642506,-500.0,0.00016438,2]
[350149488,1737654642515,-500.0,0.00016438,2]
[350149489,1737654642524,-538.0,0.00016438,2]
[350149490,1737654642533,-615.78,0.00016438,2]
[350149491,1737654642542,-2378.29,0.00016438,2]
[350149492,1737654642552,-500.0,0.00016438,2]
[350149493,1737654642561,-500.0,0.00016438,2]
[350149495,1737654642571,-500.0,0.00016438,2]
[350149496,1737654642580,-500.0,0.00016438,2]
[350149497,1737654642589,-506.51,0.00016438,2]
[350149498,1737654642599,-2446.67,0.00016438,2]
[350149499,1737654642607,-500.0,0.00016438,2]
[350149500,1737654642617,-500.0,0.00016438,2]
[350149501,1737654642626,-500.0,0.00016438,2]
[350149502,1737654642635,-500.0,0.00016438,2]
[350149503,1737654642644,-500.0,0.00016438,2]
[350149504,1737654642653,-500.0,0.00016438,2]
[350149505,1737654642663,-899.64,0.00016438,2]
[350149506,1737654642672,-975.56,0.00016438,2]
[350149507,1737654642681,-605.74,0.00016438,2]
[350149508,1737654642690,-500.0,0.00016438,2]
[350149509,1737654642700,-324.94102197,0.00016438,2]
[350149510,1737654642709,-500.0,0.00016438,2]
[350149511,1737654642718,-868.1,0.00016438,2]
[350149512,1737654642727,-500.0,0.00016438,2]
[350149513,1737654642737,-547.42817742,0.00016438,2]
[350149514,1737654642747,-1633.58,0.00016438,2]
[350149515,1737654642756,-781.82,0.00016438,2]
[350149516,1737654642765,-200.0,0.00016438,2]
[350149517,1737654642774,-500.0,0.00016438,2]
[350149518,1737654642784,-1609.55,0.00016438,2]
[350149520,1737654642793,-621.11,0.00016438,2]
[350149522,1737654642803,-500.0,0.00016438,2]
[350149523,1737654642812,-381.09173129,0.00016438,2]
[350149524,1737654642822,-500.0,0.00016438,2]
[350149525,1737654642832,-500.0,0.00016438,2]
[350149526,1737654642843,-500.0,0.00016438,2]
[350149527,1737654642852,-1159.73,0.00016438,2]
[350149528,1737654642862,-641.86,0.00016438,2]
[350149529,1737654642871,-500.0,0.00016438,2]
[350149530,1737654642880,-1000.0,0.00016438,2]
[350149531,1737654642890,-500.0,0.00016438,2]
[350149532,1737654642902,-500.0,0.00016438,2]
[350149533,1737654642912,-778.63,0.00016438,2]
[350149534,1737654642921,-571.6,0.00016438,2]
[350149535,1737654642931,-517.59772387,0.00016438,2]
[350149536,1737654642945,-1097.60227613,0.00016438,2]
[350149537,1737654642955,-500.0,0.00016438,2]
[350149538,1737654642965,-733.17,0.00016438,2]
[350149539,1737654642976,-500.0,0.00016438,2]
[350149540,1737654642985,-500.0,0.00016438,2]
[350149541,1737654642995,-500.0,0.00016438,2]
[350149542,1737654643005,-500.0,0.00016438,2]
[350149543,1737654643014,-500.0,0.00016438,2]
[350149544,1737654643023,-500.0,0.00016438,2]
[350149545,1737654643033,-639.22772387,0.00016438,2]
[350149546,1737654643045,-79.07227613,0.00016438,2]
[350149547,1737654643054,-500.0,0.00016438,2]
[350149548,1737654643064,-500.0,0.00016438,2]
[350149549,1737654643073,-500.0,0.00016438,2]
[350149550,1737654643083,-500.0,0.00016438,2]
[350149551,1737654643092,-500.0,0.00016438,2]
[350149552,1737654643102,-500.0,0.00016438,2]
[350149553,1737654643112,-1535.67,0.00016438,2]
[350149554,1737654643122,-500.0,0.00016438,2]
[350149555,1737654643132,-456.25772387,0.00016438,2]
[350149556,1737654643304,-1055.7,0.00016438,2]
[350149557,1737654643343,-664.03227613,0.00016438,2]
[350149558,1737654643353,-1468.52,0.00016438,2]
[350149559,1737654643363,-203.23439036,0.00016438,2]
[350149560,1737654643373,-500.0,0.00016438,2]
[350149561,1737654643384,-1151.71508202,0.00016438,2]
[350149562,1737654643398,-2686.36491798,0.00016438,2]
[350149563,1737654643407,-500.0,0.00016438,2]
[350149564,1737654643416,-509.66,0.00016438,2]
[350149565,1737654643427,-500.0,0.00016438,2]
[350149566,1737654643436,-505.60686941,0.00016438,2]
[350149567,1737654643446,-500.0,0.00016438,2]
[350149568,1737654643455,-866.35,0.00016438,2]
[350149569,1737654643465,-1206.81,0.00016438,2]
[350149570,1737654643475,-500.0,0.00016438,2]
[350149571,1737654643485,-500.0,0.00016438,2]
[350149572,1737654643494,-780.93,0.00016438,2]
[350149573,1737654643504,-500.0,0.00016438,2]
[350149574,1737654643514,-500.0,0.00016438,2]
[350149575,1737654643524,-500.0,0.00016438,2]
[350149576,1737654643534,-1769.1,0.00016438,2]
[350149577,1737654643543,-500.0,0.00016438,2]
[350149578,1737654643553,-340.62219102,0.00016438,2]
[350149579,1737654643563,-692.88,0.00016438,2]
[350149580,1737654643573,-576.86247526,0.00016438,2]
[350149581,1737654643582,-500.0,0.00016438,2]
[350149582,1737654643593,-500.0,0.00016438,2]
[350149583,1737654643602,-1889.49,0.00016438,2]
[350149584,1737654643612,-236.95761212,0.00016438,2]
[350149585,1737654643629,-263.04238788,0.00016438,2]
[350149586,1737654643638,-1852.07061212,0.00016438,2]
[350149587,1737654643650,-56.78938788,0.00016438,2]
[350149588,1737654643659,-500.0,0.00016438,2]
[350149589,1737654643668,-955.78,0.00016438,2]
[350149590,1737654643677,-500.0,0.00016438,2]
[350149591,1737654643686,-500.0,0.00016438,2]
[350149592,1737654643696,-500.0,0.00016438,2]
[350149593,1737654643704,-500.0,0.00016438,2]
[350149594,1737654643714,-500.0,0.00016438,2]
[350149595,1737654643723,-320.26097612,0.00016438,2]
[350149596,1737654643735,-490.31902388,0.00016438,2]
[350149597,1737654643744,-37.78097612,0.00016438,2]
[350149601,1737654644123,-437.86,0.00016064,2]
[350149602,1737654644132,-462.21902388,0.00016438,2]
[350149603,1737654644142,-500.0,0.00016438,2]
[350149604,1737654644152,-500.0,0.00016438,2]
[350149605,1737654644161,-1386.48,0.00016438,2]
[350149606,1737654644170,-500.0,0.00016438,2]
[350149607,1737654644179,-500.0,0.00016438,2]
[350149608,1737654644189,-500.0,0.00016438,2]
[350149609,1737654644198,-1081.78,0.00016438,2]
[350149610,1737654644208,-1045.08,0.00016438,2]
[350149611,1737654644219,-500.0,0.00016438,2]
[350149612,1737654644229,-500.0,0.00016438,2]
[350149613,1737654644238,-500.0,0.00016438,2]
[350149614,1737654644247,-500.0,0.00016438,2]
[350149615,1737654644257,-500.0,0.00016438,2]
[350149616,1737654644266,-500.0,0.00016438,2]
[350149617,1737654644276,-500.0,0.00016438,2]
[350149618,1737654644285,-1083.32,0.00016438,2]
[350149619,1737654644295,-772.56,0.00016438,2]
[350149620,1737654644304,-500.0,0.00016438,2]
[350149621,1737654644313,-500.0,0.00016438,2]
[350149622,1737654644322,-2463.68,0.00016438,2]
[350149623,1737654644332,-805.08,0.00016438,2]
[350149624,1737654644341,-500.0,0.00016438,2]
[350149625,1737654644350,-500.0,0.00016438,2]
[350149626,1737654644359,-500.0,0.00016438,2]
[350149627,1737654644368,-500.0,0.00016438,2]
[350149628,1737654644378,-500.0,0.00016438,2]
[350149629,1737654644387,-500.0,0.00016438,2]
[350149630,1737654644397,-758.5,0.00016438,2]
[350149631,1737654644407,-500.0,0.00016438,2]
[350149632,1737654644416,-784.88,0.00016438,2]
[350149633,1737654644426,-500.0,0.00016438,2]
[350149635,1737654644435,-500.0,0.00016438,2]
[350149636,1737654644444,-500.0,0.00016438,2]
[350149637,1737654644454,-500.0,0.00016438,2]
[350149638,1737654644463,-500.0,0.00016438,2]
[350149639,1737654644473,-1655.45,0.00016438,2]
[350149640,1737654644482,-500.0,0.00016438,2]
[350149641,1737654644492,-552.49,0.00016438,2]
[350149642,1737654644502,-500.0,0.00016438,2]
[350149643,1737654644511,-500.0,0.00016438,2]
[350149644,1737654644521,-1415.65,0.00016438,2]
[350149645,1737654644530,-500.0,0.00016438,2]
[350149646,1737654644539,-500.0,0.00016438,2]
[350149647,1737654644549,-510.13578889,0.00016438,2]
[350149648,1737654644558,-650.94,0.00016438,2]
[350149649,1737654644567,-706.05,0.00016438,2]
[350149650,1737654644576,-500.0,0.00016438,2]
[350149651,1737654644585,-500.0,0.00016438,2]
[350149652,1737654644594,-500.0,0.00016438,2]
[350149653,1737654644603,-500.0,0.00016438,2]
[350149654,1737654644613,-500.0,0.00016438,2]
[350149655,1737654644622,-500.0,0.00016438,2]
[350149656,1737654644631,-754.54,0.00016438,2]
[350149657,1737654644640,-500.0,0.00016438,2]
[350149658,1737654644650,-500.0,0.00016438,2]
[350149659,1737654644659,-511.54,0.00016438,2]
[350149660,1737654644669,-591.51,0.00016438,2]
[350149661,1737654644678,-500.0,0.00016438,2]
[350149662,1737654644687,-500.0,0.00016438,2]
[350149663,1737654644697,-837.14,0.00016438,2]
[350149664,1737654644706,-1526.04,0.00016438,2]
[350149665,1737654644716,-500.0,0.00016438,2]
[350149666,1737654644725,-500.0,0.00016438,2]
[350149667,1737654644735,-500.0,0.00016438,2]
[350149668,1737654644744,-869.25,0.00016438,2]
[350149669,1737654644753,-500.0,0.00016438,2]
[350149670,1737654644762,-500.0,0.00016438,2]
[350149671,1737654644771,-1142.87,0.00016438,2]
[350149672,1737654644781,-1037.89,0.00016438,2]
[350149673,1737654644791,-500.0,0.00016438,2]
[350149674,1737654644800,-767.25,0.00016438,2]
[350149675,1737654644810,-500.0,0.00016438,2]
[350149676,1737654644819,-500.0,0.00016438,2]
[350149677,1737654644829,-1763.83,0.00016438,2]
[350149678,1737654644838,-500.0,0.00016438,2]
[350149679,1737654644848,-500.0,0.00016438,2]
[350149680,1737654644857,-500.0,0.00016438,2]
[350149681,1737654644867,-1547.72,0.00016438,2]
[350149682,1737654644876,-500.0,0.00016438,2]
[350149683,1737654644886,-500.0,0.00016438,2]
[350149684,1737654644896,-500.0,0.00016438,2]
[350149685,1737654644909,-500.0,0.00016438,2]
[350149686,1737654644918,-500.0,0.00016438,2]
[350149687,1737654644927,-500.0,0.00016438,2]
[350149688,1737654644937,-755.18,0.00016438,2]
[350149689,1737654644947,-500.0,0.00016438,2]
[350149690,1737654644956,-500.0,0.00016438,2]
[350149691,1737654644967,-500.0,0.00016438,2]
[350149692,1737654644978,-500.0,0.00016438,2]
[350149693,1737654644988,-1919.13,0.00016438,2]
[350149694,1737654644997,-500.0,0.00016438,2]
[350149695,1737654645007,-500.0,0.00016438,2]
[350149696,1737654645016,-3205.62,0.00016438,2]
[350149697,1737654645026,-1447.0,0.00016438,2]
[350149698,1737654645186,-500.0,0.00016438,2]
[350149699,1737654645197,-618.13956057,0.00016438,2]
[350149700,1737654645207,-500.0,0.00016438,2]
[350149701,1737654645218,-500.0,0.00016438,2]
[350149702,1737654645228,-500.0,0.00016438,2]
[350149703,1737654645238,-1186.58,0.00016438,2]
[350149704,1737654645248,-504.97123509,0.00016438,2]
[350149705,1737654645258,-500.0,0.00016438,2]
[350149706,1737654645267,-500.0,0.00016438,2]
[350149707,1737654645277,-500.0,0.00016438,2]
[350149708,1737654645287,-286.17479129,0.00016438,2]
[350149709,1737654645296,-500.0,0.00016438,2]
[350149710,1737654645306,-500.0,0.00016438,2]
[350149711,1737654645315,-500.0,0.00016438,2]
[350149712,1737654645325,-609.06,0.00016438,2]
[350149713,1737654645334,-3411.61,0.00016438,2]
[350149714,1737654645344,-500.0,0.00016438,2]
[350149715,1737654645353,-926.83,0.00016438,2]
[350149716,1737654645363,-500.0,0.00016438,2]
[350149717,1737654645373,-500.0,0.00016438,2]
[350149718,1737654645383,-662.22,0.00016438,2]
[350149719,1737654645392,-500.0,0.00016438,2]
[350149720,1737654645402,-500.0,0.00016438,2]
[350149721,1737654645411,-500.0,0.00016438,2]
[350149722,1737654645420,-500.0,0.00016438,2]
[350149723,1737654645430,-726.48,0.00016438,2]
[350149724,1737654645440,-1496.65,0.00016438,2]
[350149725,1737654645449,-400.25220804,0.00016438,2]
[350149726,1737654645459,-500.0,0.00016438,2]
[350149727,1737654645469,-500.0,0.00016438,2]
[350149728,1737654645479,-500.0,0.00016438,2]
[350149729,1737654645489,-500.0,0.00016438,2]
[350149730,1737654645499,-200.0,0.00016518,2]
[350149731,1737654645508,-960.62282618,0.00016518,2]
[350149732,1737654645519,-200.0,0.00016519,2]
[350149733,1737654645528,-379.32397569,0.00016522,2]
[350149734,1737654645538,-467.6618754,0.00016522,2]
[350149735,1737654645547,-213.50367059,0.00016523,2]
[350149736,1737654645556,-40726.39090576,0.00016523,2]
[350149737,1737654645566,-10670.59354015,0.00016528,2]
[350149738,1737654645620,-1399.2026204,0.00016528,2]
[350149739,1737654645630,-200.0,0.00016528,2]
[350149740,1737654645640,-2350.6251216,0.00016528,2]
[350149741,1737654645649,-319.51823973,0.00016529,2]
[350149742,1737654645658,-200.0,0.0001653,2]
[350149743,1737654645668,-594.22467298,0.0001653,2]
[350149744,1737654645677,-594.22467298,0.00016531,2]
[350149745,1737654645687,-646.78667615,0.00016531,2]
[350149746,1737654645698,-8903.27633684,0.00016531,2]
[350149747,1737654645707,-200.0,0.00016535,2]
[350149748,1737654645718,-467.6618754,0.00016535,2]
[350149749,1737654645728,-594.22467298,0.00016538,2]
[350149750,1737654645738,-200.0,0.00016539,2]
[350149751,1737654645748,-379.32397569,0.0001654,2]
[350149752,1737654645758,-257.25422046,0.00016542,2]
[350149753,1737654646136,-150.0,0.00016064,2]
[350149754,1737654646146,-150.0,0.00016064,2]
[350149755,1737654646156,-500.0,0.00016438,2]
[350149756,1737654646166,-510.91242949,0.00016438,2]
[350149757,1737654646178,-500.0,0.00016438,2]
[350149758,1737654646188,-500.0,0.00016438,2]
[350149759,1737654646198,-703.36860572,0.00016542,2]
[350149760,1737654646207,-40726.39090576,0.00016544,2]
[350149761,1737654646217,-213.50367059,0.00016546,2]
[350149762,1737654646226,-200.0,0.00016548,2]
[350149763,1737654646235,-939.07,0.00016549,2]
[350149764,1737654646245,-319.51823973,0.00016549,2]
[350149765,1737654646254,-594.22467298,0.00016552,2]
[350149766,1737654646263,-467.6618754,0.00016553,2]
[350149767,1737654646273,-4953.16337992,0.00016553,2]
[350149768,1737654646285,-1684.89961336,0.00016553,2]
[350149769,1737654646296,-3176.5101897,0.00016553,2]
[350149770,1737654646325,-2255.22297757,0.00016553,2]
[350149771,1737654646334,-200.0,0.00016554,2]
[350149772,1737654646343,-182.27702243,0.00016555,2]
[350149773,1737654646355,-252.00000002,0.00016555,2]
[350149774,1737654646367,-33.38485295,0.00016555,2]
[350149775,1737654646376,-213.50367059,0.00016555,2]
[350149776,1737654646386,-379.32397569,0.00016555,2]
[350149777,1737654646396,-692.46703937,0.00016557,2]
[350149778,1737654698878,504.11522774,0.00014781,7]
[350149779,1737654747620,153.57,0.000219,31]
[350149780,1737654747784,153.57,0.000219,31]
[350149781,1737654747848,153.57,0.000219,31]
[350149782,1737654747908,153.57,0.000219,31]
[350149783,1737654747975,153.57,0.000219,31]
[350149784,1737654748032,153.57,0.000219,31]
[350149785,1737654748078,153.57,0.000219,31]
[350149786,1737654748122,153.57,0.000219,31]
[350149787,1737654748167,153.57,0.000219,31]
[350149788,1737654748229,153.57,0.000219,31]
[350149789,1737654748293,153.57,0.000219,31]
[350149790,1737654748343,153.57,0.000219,31]
[350149793,1737655064483,153.53,0.00016658,30]
[350149794,1737655064519,153.53,0.00019546,30]
[350149795,1737655064679,153.53,0.00022434,30]
[350149797,1737655358591,153.59,0.000219,31]
[350149798,1737655358657,153.59,0.000219,31]
[350149799,1737655358713,153.59,0.000219,31]
[350149800,1737655358782,153.59,0.000219,31]
[350149801,1737655358880,153.59,0.000219,31]
[350149802,1737655358944,153.59,0.000219,31]
[350149803,1737655358986,153.59,0.000219,31]
[350149804,1737655359024,153.59,0.000219,31]
[350149805,1737655359057,153.59,0.000219,31]
[350149806,1737655359139,153.59,0.000219,31]
[350149807,1737655359202,153.59,0.000219,31]
[350149808,1737655359259,153.59,0.000219,31]
[350149809,1737655359455,153.59,0.000219,31]
[350149810,1737655359493,153.59,0.000219,31]
[350149828,1737655832105,-287.31,0.00010137,2]
[350149829,1737655832115,-152.8,0.00010137,2]
[350149830,1737655832124,-798.2,0.00013557,2]
[350149831,1737655832134,-187.28498123,0.0001505,2]
[350149832,1737655832143,-630.18,0.00015148,2]
[350149833,1737655832153,-250.0,0.0001515,2]
[350149834,1737655832162,-165.66,0.00015181,2]
[350149835,1737655832172,-250.0,0.00015432,2]
[350149836,1737655832181,-161.94,0.00015539,2]
[350149837,1737655832191,-161.94,0.00015578,2]
[350149838,1737655832200,-161.94,0.00015617,2]
[350149839,1737655832209,-23349.97833967,0.00015619,2]
[350149840,1737655832232,-550.02166033,0.00015619,2]
[350149841,1737655832242,-250.0,0.0001573,2]
[350149842,1737655832254,-449.28561171,0.00015821,2]
[350149843,1737655832266,-348.91438829,0.00015821,2]
[350149844,1737655832275,-153.93002096,0.00015821,2]
[350150358,1737655838202,-846.06997904,0.00015821,2]
[350150359,1737655838211,-188.64,0.0001584,2]
[350150360,1737655838222,-150.0,0.00015878,2]
[350150361,1737655838231,-9392.0,0.00015956,2]
[350150362,1737655838241,-437.26,0.00015978,2]
[350150363,1737655838251,-150.0,0.00015978,2]
[350150364,1737655838263,-150.0,0.00015978,2]
[350150365,1737655838272,-298.1,0.0001607,2]
[350150366,1737655838281,-437.86,0.0001607,2]
[350150367,1737655838291,-150.0,0.0001607,2]
[350150368,1737655838300,-339.88,0.0001607,2]
[350150369,1737655838310,-300.0,0.0001607,2]
[350150370,1737655838319,-150.0,0.0001607,2]
[350150371,1737655838328,-150.0,0.0001607,2]
[350150372,1737655838338,-437.86,0.0001607,2]
[350150373,1737655838347,-150.0,0.0001607,2]
[350150374,1737655838356,-437.86,0.0001607,2]
[350150375,1737655838368,-150.0,0.0001607,2]
[350150376,1737655838377,-298.1,0.0001607,2]
[350150377,1737655838386,-150.0,0.00016078,2]
[350150378,1737655838396,-437.86,0.00016078,2]
[350150379,1737655838405,-150.0,0.00016078,2]
[350150380,1737655838414,-150.0,0.00016078,2]
[350150381,1737655838423,-1323.0,0.000161,2]
[350150382,1737655838433,-876.96,0.0001617,2]
[350150383,1737655838442,-430.64066539,0.00016178,2]
[350150384,1737655838452,-991.2566,0.000162,2]